fUST/lending_fUST_20240902
["ID","MTS","AMOUNT","RATE_DAILY","PERIOD"]
[336882728,1725229850415,-676.49,0.00025205,2]
[336882729,1725229850425,-500.0,0.00025205,2]
[336882730,1725229850435,-721.26,0.00025205,2]
[336882731,1725229850446,-500.0,0.00025205,2]
[336882732,1725229850456,-500.0,0.00025205,2]
[336882733,1725229850466,-500.0,0.00025205,2]
[336882734,1725229850475,-500.0,0.00025205,2]
[336882735,1725229850485,-555.035418,0.00025205,7]
[336882736,1725229850494,-555.035418,0.00025205,7]
[336882737,1725229850504,-500.0,0.00025205,2]
[336882738,1725229850513,-1536.08,0.00025205,2]
[336882739,1725229850522,-500.0,0.00025205,2]
[336882740,1725229850532,-1494.56,0.00025205,2]
[336882741,1725229850541,-1158.32,0.00025205,2]
[336882742,1725229850550,-1127.48,0.00025205,2]
[336882743,1725229850560,-1554.61,0.00025205,2]
[336882744,1725229850570,-500.0,0.00025205,2]
[336882745,1725229850583,-500.0,0.00025205,2]
[336882746,1725229850593,-296.42311592,0.00025205,2]
[336882747,1725229850603,-521.69064609,0.00025205,2]
[336882748,1725229850614,-1721.95,0.00025205,2]
[336882749,1725229850623,-1775.85,0.00025205,2]
[336882750,1725229850634,-574.85,0.00025205,2]
[336882751,1725229850643,-642.25,0.00025205,2]
[336882752,1725229850653,-500.0,0.00025205,2]
[336882753,1725229850666,-2541.03,0.00025205,2]
[336882754,1725229850675,-699.61,0.00025205,2]
[336882755,1725229850685,-1051.49,0.00025205,2]
[336882756,1725229850694,-500.0,0.00025205,2]
[336882757,1725229850704,-567.45,0.00025205,2]
[336882758,1725229850715,-556.61,0.00025205,2]
[336882759,1725229850726,-500.0,0.00025205,2]
[336882760,1725229850736,-500.0,0.00025205,2]
[336882761,1725229850746,-1158.11,0.00025205,2]
[336882762,1725229850757,-500.0,0.00025205,2]
[336882763,1725229850766,-500.0,0.00025205,2]
[336882764,1725229850776,-667.2733633,0.00025205,2]
[336882765,1725229850800,-7223.6466367,0.00025205,2]
[336882766,1725229850810,-500.0,0.00025205,2]
[336882767,1725229850820,-1722.8,0.00025205,2]
[336882768,1725229850835,-1408.0,0.00025205,2]
[336882769,1725229850845,-728.64,0.00025205,2]
[336882770,1725229850855,-1238.55,0.00025205,2]
[336882771,1725229850864,-500.0,0.00025205,2]
[336882772,1725229850874,-6037.83,0.00025205,2]
[336882773,1725229850883,-717.43,0.00025205,2]
[336882774,1725229850893,-952.65137704,0.00025205,2]
[336882775,1725229851377,-500.0,0.00024657,2]
[336882776,1725229851388,-500.0,0.00024657,2]
[336882777,1725229851397,-502.05045916,0.00024657,2]
[336882778,1725229851408,-500.0,0.00024931,2]
[336882779,1725229851418,-500.0,0.00024931,2]
[336882780,1725229851428,-605.38862296,0.00025205,2]
[336882781,1725229851438,-500.0,0.00025205,2]
[336882782,1725229851448,-500.0,0.00025205,2]
[336882783,1725229851457,-500.0,0.00025205,2]
[336882784,1725229851467,-1933.99,0.00025205,2]
[336882785,1725229851476,-1714.09,0.00025205,2]
[336882786,1725229851486,-500.0,0.00025205,2]
[336882787,1725229851496,-500.0,0.00025205,2]
[336882788,1725229851505,-647.77,0.00025205,2]
[336882789,1725229851514,-1461.48,0.00025205,2]
[336882790,1725229851524,-2017.0,0.00025205,2]
[336882791,1725229851644,-500.0,0.00025205,2]
[336882792,1725229851654,-2442.88,0.00025205,2]
[336882793,1725229851666,-500.0,0.00025205,2]
[336882794,1725229851679,-2208.18,0.00025205,2]
[336882795,1725229851688,-500.0,0.00025205,2]
[336882796,1725229851698,-1110.58,0.00025205,2]
[336882797,1725229851709,-1546.13,0.00025205,2]
[336882798,1725229851718,-500.0,0.00025205,2]
[336882799,1725229851728,-500.0,0.00025205,2]
[336882800,1725229851738,-1484.58,0.00025205,2]
[336882801,1725229851747,-500.0,0.00025205,2]
[336882802,1725229851759,-500.0,0.00025205,2]
[336882803,1725229851770,-1246.4,0.00025205,2]
[336882804,1725229851779,-524.99,0.00025205,2]
[336882805,1725229851788,-551.55,0.00025205,2]
[336882806,1725229851797,-500.0,0.00025205,2]
[336882807,1725229851808,-500.0,0.00025205,2]
[336882808,1725229851818,-500.0,0.00025205,2]
[336882809,1725229851830,-3000.0,0.0002521,2]
[336882810,1725229851840,-3000.0,0.0002522,2]
[336882811,1725229851850,-214.55234026,0.00025221,2]
[336882812,1725229851859,-1000.0,0.00025221,2]
[336882813,1725229851869,-1000.0,0.00025229,2]
[336882814,1725229851878,-3000.0,0.0002523,2]
[336882815,1725229851888,-3000.0,0.0002524,2]
[336882816,1725229851898,-1000.0,0.00025249,2]
[336882817,1725229851907,-269.59782991,0.0002525,2]
[336882819,1725229939768,160.96013,0.00014247,2]
[336882824,1725230157151,8075.72466253,0.00015,2]
[336882829,1725230502842,163.967185,0.00014247,2]
[336882830,1725230827123,-209.0,0.00023045,2]
[336882831,1725230827146,-353.9024332,0.00023046,2]
[336882832,1725230843106,-518.49250823,0.00023046,2]
[336882833,1725230911745,10000.0,0.0002009,2]
[336882848,1725231032292,-300.0,0.00023045,2]
[336882849,1725231032303,-714.93921385,0.00023046,2]
[336882850,1725231032329,-315.155,0.00023046,2]
[336882851,1725231032342,-671.33001715,0.00023046,2]
[336882909,1725231038732,-22326.18082757,0.00023046,2]
[336882911,1725231038742,-1753.307592,0.00023194,2]
[336882913,1725231038751,-195.957411,0.00023336,2]
[336882915,1725231038761,-388.425741,0.00023836,2]
[336882917,1725231038771,-2500.0,0.0002413,2]
[336882919,1725231038781,-4771.61545486,0.00024443,2]
[336882921,1725231038791,-415.5187952,0.000245,2]
[336882923,1725231038801,-207.943127,0.000245,2]
[336882925,1725231038811,-6000.0,0.00024557,2]
[336882926,1725231038820,-525.08411007,0.00024557,2]
[336882928,1725231038831,-2500.0,0.0002463,2]
[336882930,1725231038841,-12845.7397641,0.00024647,3]
[336882931,1725231038851,-402.48,0.00024647,3]
[336882932,1725231038860,-164.29997428,0.00024656,2]
[336882933,1725231038869,-500.0,0.00024656,2]
[336882934,1725231038879,-500.0,0.00024656,2]
[336882935,1725231038889,-588.97870588,0.00024656,2]
[336882937,1725231038899,-500.0,0.00024656,2]
[336882938,1725231038908,-4070.25228234,0.00024657,11]
[336882939,1725231038917,-508.84601125,0.00024657,2]
[336882941,1725231038927,-500.0,0.00024657,2]
[336882942,1725231038937,-500.0,0.00024657,2]
[336882943,1725231038946,-500.0,0.00024657,2]
[336882944,1725231038956,-1188.0,0.00024657,2]
[336882945,1725231038966,-500.0,0.00024657,2]
[336882946,1725231038975,-500.0,0.00024657,2]
[336882947,1725231038984,-500.0,0.00024657,2]
[336882948,1725231038994,-500.0,0.00024657,2]
[336882949,1725231039004,-500.0,0.00024657,2]
[336882950,1725231039013,-500.0,0.00024657,2]
[336882951,1725231039023,-500.0,0.00024657,2]
[336882952,1725231039033,-500.0,0.00024657,2]
[336882953,1725231039042,-500.0,0.00024657,2]
[336882954,1725231039051,-500.0,0.00024657,2]
[336882955,1725231039070,-500.0,0.00024657,2]
[336882956,1725231039083,-500.0,0.00024657,2]
[336882957,1725231039094,-500.0,0.00024657,2]
[336882958,1725231039104,-500.0,0.00024657,2]
[336882959,1725231039115,-802.19,0.00024657,2]
[336882960,1725231039125,-500.0,0.00024657,2]
[336882961,1725231039135,-500.0,0.00024657,2]
[336882962,1725231039149,-540.57,0.00024657,2]
[336882963,1725231039161,-500.0,0.00024657,2]
[336882964,1725231039171,-500.0,0.00024657,2]
[336882965,1725231039181,-500.0,0.00024657,2]
[336882966,1725231039191,-500.0,0.00024657,2]
[336882967,1725231039202,-500.0,0.00024657,2]
[336882968,1725231039211,-500.0,0.00024657,2]
[336882969,1725231039222,-500.0,0.00024657,2]
[336882970,1725231039231,-500.0,0.00024657,2]
[336882971,1725231039241,-500.0,0.00024657,2]
[336882972,1725231039251,-500.0,0.00024657,2]
[336882973,1725231039261,-426.32808891,0.00024657,2]
[336882974,1725231039270,-500.0,0.00024657,2]
[336882975,1725231039280,-500.0,0.00024657,2]
[336882976,1725231039289,-618.66,0.00024657,2]
[336882977,1725231039299,-500.0,0.00024657,2]
[336882978,1725231039308,-500.0,0.00024657,2]
[336882979,1725231039318,-500.0,0.00024657,2]
[336882980,1725231039327,-500.0,0.00024657,2]
[336882981,1725231039337,-500.0,0.00024657,2]
[336882982,1725231039346,-500.0,0.00024657,2]
[336882983,1725231039356,-500.0,0.00024657,2]
[336882984,1725231039365,-458.69737463,0.00024657,2]
[336882985,1725231039375,-500.0,0.00024657,2]
[336882986,1725231039384,-500.0,0.00024657,2]
[336882987,1725231039393,-509.52,0.00024657,2]
[336882988,1725231039403,-500.0,0.00024657,2]
[336882989,1725231039412,-500.0,0.00024657,2]
[336882990,1725231039422,-500.0,0.00024657,2]
[336882991,1725231039431,-500.0,0.00024657,2]
[336882992,1725231039441,-500.0,0.00024657,2]
[336882993,1725231039450,-500.0,0.00024657,2]
[336882994,1725231039460,-500.0,0.00024657,2]
[336882995,1725231039469,-500.0,0.00024657,2]
[336882996,1725231039481,-500.0,0.00024657,2]
[336882997,1725231039490,-500.0,0.00024657,2]
[336882998,1725231039499,-500.0,0.00024657,2]
[336882999,1725231039511,-500.0,0.00024657,2]
[336883000,1725231039521,-500.0,0.00024657,2]
[336883001,1725231039532,-500.0,0.00024657,2]
[336883002,1725231039541,-500.0,0.00024657,2]
[336883003,1725231039551,-500.0,0.00024657,2]
[336883004,1725231039560,-500.0,0.00024657,4]
[336883005,1725231039570,-500.0,0.00024657,2]
[336883006,1725231039580,-577.58,0.00024657,2]
[336883007,1725231039589,-306.90346534,0.00024657,2]
[336883008,1725231039599,-500.0,0.00024657,2]
[336883009,1725231039608,-620.3,0.00024657,2]
[336883010,1725231039617,-500.0,0.00024657,2]
[336883011,1725231039630,-500.0,0.00024657,2]
[336883012,1725231039639,-500.0,0.00024657,2]
[336883013,1725231039649,-310.73867141,0.00024657,2]
[336883014,1725231039659,-500.0,0.00024657,2]
[336883015,1725231039669,-500.0,0.00024657,2]
[336883016,1725231039683,-500.0,0.00024657,2]
[336883017,1725231039693,-500.0,0.00024657,2]
[336883018,1725231039709,-502.63088586,0.00024657,2]
[336883019,1725231039721,-500.0,0.00024657,2]
[336883020,1725231039731,-500.0,0.00024657,2]
[336883021,1725231039741,-154.83952908,0.00024657,2]
[336883022,1725231039750,-500.0,0.00024657,2]
[336883023,1725231039760,-500.0,0.00024657,2]
[336883024,1725231039770,-500.0,0.00024657,2]
[336883025,1725231039780,-500.0,0.00024657,2]
[336883026,1725231039790,-500.0,0.00024657,2]
[336883027,1725231039800,-500.0,0.00024657,2]
[336883028,1725231039810,-500.0,0.00024657,2]
[336883029,1725231039820,-500.0,0.00024657,2]
[336883031,1725231039830,-1023.67,0.00024657,2]
[336883032,1725231039839,-500.0,0.00024657,2]
[336883033,1725231039849,-500.0,0.00024657,2]
[336883034,1725231039859,-503.24694525,0.00024657,2]
[336883035,1725231039868,-500.0,0.00024657,2]
[336883036,1725231039878,-500.0,0.00024657,2]
[336883037,1725231039889,-500.0,0.00024657,2]
[336883038,1725231039899,-500.0,0.00024657,2]
[336883039,1725231039910,-669.27,0.00024657,2]
[336883040,1725231039920,-501.53762631,0.00024657,2]
[336883041,1725231039931,-500.0,0.00024657,2]
[336883042,1725231039940,-500.0,0.00024657,2]
[336883043,1725231039953,-500.0,0.00024657,2]
[336883044,1725231039962,-500.0,0.00024657,2]
[336883045,1725231039973,-500.0,0.00024657,2]
[336883046,1725231039983,-500.0,0.00024657,2]
[336883047,1725231039992,-500.0,0.00024657,2]
[336883048,1725231040002,-500.0,0.00024657,2]
[336883049,1725231040012,-500.0,0.00024657,2]
[336883050,1725231040022,-500.0,0.00024657,2]
[336883052,1725231040031,-847.6,0.00024657,2]
[336883054,1725231040041,-500.0,0.00024657,2]
[336883055,1725231040050,-500.0,0.00024657,2]
[336883057,1725231040060,-500.0,0.00024657,2]
[336883059,1725231040073,-505.29352395,0.00024657,2]
[336883061,1725231040083,-707.87,0.00024657,2]
[336883063,1725231040092,-500.0,0.00024657,2]
[336883065,1725231040102,-500.0,0.00024657,2]
[336883067,1725231040111,-500.0,0.00024657,2]
[336883070,1725231040122,-153.78753431,0.00024657,2]
[336883072,1725231040131,-500.0,0.00024657,2]
[336883074,1725231040141,-529.34,0.00024657,2]
[336883076,1725231040152,-484.00240528,0.00024657,2]
[336883078,1725231040161,-500.0,0.00024657,2]
[336883081,1725231040171,-500.0,0.00024657,2]
[336883083,1725231040181,-500.0,0.00024657,2]
[336883085,1725231040191,-500.0,0.00024657,2]
[336883087,1725231040201,-500.0,0.00024657,2]
[336883089,1725231040210,-500.0,0.00024657,2]
[336883091,1725231040220,-500.0,0.00024657,2]
[336883093,1725231040230,-500.0,0.00024657,2]
[336883096,1725231040239,-500.0,0.00024657,2]
[336883098,1725231040249,-500.0,0.00024657,2]
[336883100,1725231040259,-500.0,0.00024657,2]
[336883102,1725231040269,-500.0,0.00024657,2]
[336883104,1725231040279,-500.0,0.00024657,2]
[336883106,1725231040288,-500.0,0.00024657,2]
[336883108,1725231040298,-500.0,0.00024657,2]
[336883110,1725231040311,-500.0,0.00024657,2]
[336883112,1725231040321,-500.0,0.00024657,2]
[336883115,1725231040332,-500.0,0.00024657,2]
[336883117,1725231040342,-502.620519,0.00024657,2]
[336883119,1725231040352,-500.0,0.00024657,2]
[336883121,1725231040362,-500.0,0.00024657,2]
[336883123,1725231040372,-500.0,0.00024657,2]
[336883125,1725231040382,-500.0,0.00024657,2]
[336883127,1725231040391,-500.0,0.00024657,2]
[336883129,1725231040401,-500.0,0.00024657,2]
[336883131,1725231040410,-500.0,0.00024657,2]
[336883133,1725231040419,-500.0,0.00024657,2]
[336883135,1725231040429,-500.0,0.00024657,2]
[336883137,1725231040438,-500.0,0.00024657,2]
[336883139,1725231040448,-500.0,0.00024657,2]
[336883141,1725231040458,-502.67013471,0.00024657,2]
[336883143,1725231040467,-3872.89,0.00024657,2]
[336883145,1725231040477,-500.0,0.00024657,2]
[336883147,1725231040487,-500.0,0.00024657,2]
[336883149,1725231040497,-500.0,0.00024657,2]
[336883151,1725231040506,-500.0,0.00024657,2]
[336883153,1725231040516,-500.0,0.00024657,2]
[336883155,1725231040526,-500.0,0.00024657,2]
[336883157,1725231040535,-500.0,0.00024657,2]
[336883159,1725231040545,-500.0,0.00024657,2]
[336883161,1725231040555,-500.0,0.00024657,2]
[336883163,1725231040566,-1268.25,0.00024657,2]
[336883166,1725231040575,-500.0,0.00024657,2]
[336883168,1725231040586,-500.0,0.00024657,2]
[336883170,1725231040596,-507.71146256,0.00024657,2]
[336883172,1725231040606,-500.0,0.00024657,2]
[336883174,1725231040615,-500.0,0.00024657,2]
[336883176,1725231040625,-500.0,0.00024657,2]
[336883177,1725231040634,-523.29,0.00024657,2]
[336883178,1725231040643,-500.0,0.00024657,2]
[336883179,1725231040653,-500.0,0.00024657,2]
[336883180,1725231040662,-500.0,0.00024657,2]
[336883181,1725231040672,-500.0,0.00024657,2]
[336883182,1725231040681,-500.0,0.00024657,2]
[336883184,1725231040691,-500.0,0.00024657,2]
[336883186,1725231040702,-500.0,0.00024657,2]
[336883187,1725231040713,-612.85,0.00024657,2]
[336883189,1725231040724,-500.0,0.00024657,2]
[336883191,1725231040735,-500.0,0.00024657,2]
[336883199,1725231040930,-500.0,0.00024657,2]
[336883200,1725231040941,-653.32,0.00024657,2]
[336883201,1725231040951,-603.8133327,0.00024657,2]
[336883202,1725231040961,-500.0,0.00024657,2]
[336883203,1725231040970,-500.0,0.00024657,2]
[336883204,1725231040980,-691.61,0.00024657,2]
[336883205,1725231040990,-500.0,0.00024657,2]
[336883206,1725231041000,-817.91,0.00024657,2]
[336883207,1725231041009,-500.0,0.00024657,2]
[336883208,1725231041019,-501.75064935,0.00024657,2]
[336883209,1725231041028,-500.0,0.00024657,2]
[336883210,1725231041037,-500.0,0.00024657,2]
[336883211,1725231041048,-500.0,0.00024657,2]
[336883212,1725231041060,-500.0,0.00024657,2]
[336883213,1725231041072,-500.0,0.00024657,2]
[336883214,1725231041081,-500.0,0.00024657,2]
[336883215,1725231041091,-500.0,0.00024657,2]
[336883216,1725231041101,-306.81856574,0.00024657,2]
[336883217,1725231041111,-500.0,0.00024657,2]
[336883218,1725231041123,-500.0,0.00024657,2]
[336883219,1725231041134,-500.0,0.00024657,2]
[336883220,1725231041146,-500.0,0.00024657,2]
[336883221,1725231041167,-500.0,0.00024657,2]
[336883222,1725231041177,-500.0,0.00024657,2]
[336883223,1725231041187,-500.0,0.00024657,2]
[336883224,1725231041197,-500.0,0.00024657,2]
[336883225,1725231041207,-500.0,0.00024657,2]
[336883226,1725231041216,-500.0,0.00024657,2]
[336883227,1725231041227,-500.0,0.00024657,2]
[336883228,1725231041237,-500.0,0.00024657,2]
[336883229,1725231041247,-500.0,0.00024657,2]
[336883230,1725231041257,-500.0,0.00024657,2]
[336883231,1725231041267,-500.0,0.00024657,2]
[336883232,1725231041277,-500.0,0.00024657,2]
[336883233,1725231041287,-500.0,0.00024657,2]
[336883234,1725231041297,-570.14976887,0.00024657,2]
[336883235,1725231041307,-500.0,0.00024657,2]
[336883236,1725231041317,-500.0,0.00024657,2]
[336883237,1725231041327,-574.85,0.00024657,2]
[336883238,1725231041337,-500.0,0.00024657,2]
[336883239,1725231041348,-500.0,0.00024657,2]
[336883240,1725231041358,-500.0,0.00024657,2]
[336883241,1725231041368,-556.61,0.00024657,2]
[336883242,1725231041378,-270.28823137,0.00024657,2]
[336883243,1725231041388,-500.0,0.00024657,2]
[336883244,1725231041398,-500.0,0.00024657,2]
[336883245,1725231041407,-500.0,0.00024657,2]
[336883246,1725231041418,-1149.65,0.00024657,2]
[336883247,1725231041427,-500.0,0.00024657,2]
[336883248,1725231041437,-500.0,0.00024657,2]
[336883249,1725231041448,-500.0,0.00024657,2]
[336883250,1725231041459,-500.0,0.00024657,2]
[336883251,1725231041468,-900.11,0.00024657,2]
[336883252,1725231041478,-500.0,0.00024657,2]
[336883253,1725231041487,-500.0,0.00024657,2]
[336883254,1725231041497,-500.0,0.00024657,2]
[336883255,1725231041507,-501.9649524,0.00024657,2]
[336883256,1725231041518,-500.0,0.00024657,2]
[336883257,1725231041528,-860.62,0.00024657,2]
[336883258,1725231041538,-500.0,0.00024657,2]
[336883259,1725231041547,-501.93429137,0.00024657,2]
[336883260,1725231041560,-500.0,0.00024657,2]
[336883261,1725231041570,-500.0,0.00024657,2]
[336883262,1725231041579,-507.63146472,0.00024657,2]
[336883263,1725231041589,-500.0,0.00024657,2]
[336883264,1725231041599,-500.0,0.00024657,2]
[336883265,1725231041608,-500.0,0.00024657,2]
[336883266,1725231041619,-500.0,0.00024657,2]
[336883267,1725231041628,-500.0,0.00024657,2]
[336883268,1725231041638,-620.78,0.00024657,2]
[336883269,1725231041648,-1901.99,0.00024657,2]
[336883270,1725231041657,-500.0,0.00024657,2]
[336883271,1725231041668,-524.54605929,0.00024657,2]
[336883272,1725231041678,-500.0,0.00024657,2]
[336883273,1725231041688,-504.63088037,0.00024657,2]
[336883274,1725231041700,-721.97,0.00024657,2]
[336883275,1725231041709,-500.0,0.00024657,2]
[336883276,1725231041721,-500.0,0.00024657,2]
[336883277,1725231041731,-725.22,0.00024657,2]
[336883278,1725231041742,-500.0,0.00024657,2]
[336883279,1725231041753,-500.0,0.00024657,2]
[336883280,1725231041763,-500.0,0.00024657,2]
[336883281,1725231041773,-500.0,0.00024657,2]
[336883282,1725231041782,-1524.5,0.00024657,2]
[336883283,1725231041791,-500.0,0.00024657,2]
[336883284,1725231041801,-288.97975478,0.00024657,2]
[336883285,1725231041811,-500.0,0.00024657,2]
[336883286,1725231041820,-500.0,0.00024657,2]
[336883287,1725231041830,-500.0,0.00024657,2]
[336883288,1725231041839,-536.96617675,0.00024657,2]
[336883289,1725231041849,-510.58988654,0.00024657,2]
[336883290,1725231041859,-2130.28,0.00024657,2]
[336883291,1725231041869,-500.0,0.00024657,2]
[336883292,1725231041878,-500.0,0.00024657,2]
[336883293,1725231041889,-500.80479615,0.00024657,2]
[336883294,1725231041899,-500.0,0.00024657,2]
[336883295,1725231041909,-500.0,0.00024657,2]
[336883296,1725231041921,-500.0,0.00024657,2]
[336883297,1725231041930,-500.0,0.00024657,2]
[336883298,1725231041940,-500.0,0.00024657,2]
[336883299,1725231041952,-500.0,0.00024657,2]
[336883300,1725231041961,-500.0,0.00024657,2]
[336883301,1725231041971,-500.0,0.00024657,2]
[336883302,1725231041980,-642.51149288,0.00024657,2]
[336883303,1725231041989,-500.0,0.00024657,2]
[336883304,1725231041999,-500.0,0.00024657,2]
[336883305,1725231042008,-235.96967371,0.00024657,2]
[336883306,1725231042017,-831.65,0.00024657,2]
[336883307,1725231042027,-500.0,0.00024657,2]
[336883308,1725231042036,-500.0,0.00024657,2]
[336883309,1725231042045,-500.0,0.00024657,2]
[336883310,1725231042055,-501.76369509,0.00024657,2]
[336883311,1725231042064,-447.12640099,0.00024657,2]
[336883312,1725231042078,-500.0,0.00024657,2]
[336883313,1725231042087,-847.42,0.00024657,2]
[336883314,1725231042097,-500.0,0.00024657,2]
[336883315,1725231042106,-500.0,0.00024657,2]
[336883316,1725231042115,-500.0,0.00024657,2]
[336883317,1725231042125,-500.0,0.00024657,2]
[336883318,1725231042134,-500.0,0.00024657,2]
[336883319,1725231042143,-500.0,0.00024657,2]
[336883320,1725231042152,-500.0,0.00024657,2]
[336883321,1725231042162,-500.0,0.00024657,2]
[336883322,1725231042171,-604.02,0.00024657,2]
[336883323,1725231042181,-500.0,0.00024657,2]
[336883324,1725231042190,-500.0,0.00024657,2]
[336883325,1725231042200,-500.0,0.00024657,2]
[336883326,1725231042210,-500.0,0.00024657,2]
[336883327,1725231042224,-500.0,0.00024657,2]
[336883328,1725231042234,-1438.74,0.00024657,2]
[336883329,1725231042243,-500.0,0.00024657,2]
[336883330,1725231042253,-870.66,0.00024657,2]
[336883331,1725231042262,-500.0,0.00024657,2]
[336883332,1725231042272,-500.0,0.00024657,2]
[336883333,1725231042282,-381.24220686,0.00024657,2]
[336883334,1725231042293,-500.0,0.00024657,2]
[336883335,1725231042303,-491.00930412,0.00024657,2]
[336883336,1725231042312,-534.37,0.00024657,2]
[336883337,1725231042322,-1498.55,0.00024657,2]
[336883338,1725231042331,-500.0,0.00024657,2]
[336883339,1725231042340,-500.0,0.00024657,2]
[336883340,1725231042350,-537.43010146,0.00024657,2]
[336883341,1725231042359,-720.6,0.00024657,2]
[336883342,1725231042369,-500.0,0.00024657,2]
[336883343,1725231042378,-1575.23,0.00024657,2]
[336883344,1725231042388,-1575.23,0.00024657,2]
[336883345,1725231042397,-682.69,0.00024657,2]
[336883346,1725231042406,-1575.23,0.00024657,2]
[336883347,1725231042415,-1575.23,0.00024657,2]
[336883348,1725231042425,-1575.23,0.00024657,2]
[336883349,1725231042435,-1575.23,0.00024657,2]
[336883350,1725231042445,-1575.23,0.00024657,2]
[336883351,1725231042456,-1575.23,0.00024657,2]
[336883352,1725231042465,-500.0,0.00024657,2]
[336883353,1725231042475,-1575.23,0.00024657,2]
[336883354,1725231042485,-500.0,0.00024657,2]
[336883355,1725231042494,-500.0,0.00024657,2]
[336883356,1725231042505,-500.0,0.00024657,2]
[336883357,1725231042515,-1384.51,0.00024657,2]
[336883358,1725231042526,-500.0,0.00024657,2]
[336883359,1725231042535,-500.0,0.00024657,2]
[336883360,1725231042545,-500.0,0.00024657,2]
[336883361,1725231042556,-574.05,0.00024657,2]
[336883362,1725231042566,-500.0,0.00024657,2]
[336883363,1725231042576,-500.0,0.00024657,2]
[336883364,1725231042585,-500.0,0.00024657,2]
[336883365,1725231042595,-2143.46,0.00024657,2]
[336883366,1725231042605,-506.19012524,0.00024657,2]
[336883367,1725231042614,-500.0,0.00024657,2]
[336883368,1725231042623,-500.0,0.00024657,2]
[336883369,1725231042633,-500.0,0.00024657,2]
[336883370,1725231042644,-2268.39,0.00024657,2]
[336883371,1725231042653,-1385.56,0.00024657,2]
[336883372,1725231042666,-557.48951493,0.00024657,2]
[336883373,1725231042675,-500.0,0.00024657,2]
[336883374,1725231042685,-500.0,0.00024657,2]
[336883375,1725231042694,-500.0,0.00024657,2]
[336883376,1725231042706,-803.71,0.00024657,2]
[336883377,1725231042716,-500.0,0.00024657,2]
[336883378,1725231042726,-1982.74,0.00024657,2]
[336883379,1725231042736,-500.0,0.00024657,2]
[336883380,1725231042746,-1780.09,0.00024657,2]
[336883381,1725231042756,-500.0,0.00024657,2]
[336883383,1725231042767,-997.47,0.00024657,2]
[336883384,1725231042776,-500.0,0.00024657,2]
[336883385,1725231042786,-500.0,0.00024657,2]
[336883386,1725231042795,-515.15,0.00024657,2]
[336883387,1725231042804,-581.61373928,0.00024657,2]
[336883388,1725231042814,-663.41,0.00024657,2]
[336883389,1725231042824,-500.0,0.00024657,2]
[336883390,1725231042834,-500.0,0.00024657,2]
[336883391,1725231042843,-500.0,0.00024657,2]
[336883392,1725231042854,-500.0,0.00024657,2]
[336883393,1725231042864,-500.0,0.00024657,2]
[336883394,1725231042874,-500.0,0.00024657,2]
[336883396,1725231042884,-500.0,0.00024657,2]
[336883397,1725231042894,-500.0,0.00024657,2]
[336883398,1725231042903,-500.0,0.00024657,2]